{"text_format":"3","workbook":"xlsx","n_sheets":4,"sheets":["AFP","Sachausgaben","Personalausgaben","Angaben zur Fachkraft"],"not_rendered":{"images":1,"defined_names":4},"read":"whole","date_system":"1900"}

{"sheet":"AFP","index":0,"n_rows":33,"n_cols":16,"rows_kept":33,"merged":[[2,11,2,15],[4,0,4,15],[6,4,6,8],[8,0,8,3],[8,4,8,15],[10,0,10,15],[11,0,11,15],[13,0,15,3],[13,4,13,7],[13,8,13,11],[13,12,13,15],[14,4,14,7],[14,8,14,11],[14,12,14,15],[15,4,15,7],[15,8,15,11],[15,12,15,15],[17,0,18,3],[17,4,17,7],[17,8,17,11],[17,12,17,15],[18,4,18,7],[18,8,18,11],[18,12,18,15],[19,0,19,3],[19,4,19,7],[19,8,19,11],[19,12,19,15],[20,0,20,3],[20,4,20,7],[20,8,20,11],[20,12,20,15],[22,0,22,3],[22,4,22,7],[22,8,22,11],[22,12,22,15],[23,0,23,3],[23,4,23,7],[23,8,23,11],[23,12,23,15],[24,0,24,3],[24,4,24,7],[24,8,24,11],[24,12,24,15],[25,0,25,3],[25,4,25,7],[25,8,25,11],[25,12,25,15],[26,0,26,3],[26,4,26,7],[26,8,26,11],[26,12,26,15],[29,0,29,15],[30,0,30,15],[31,0,31,4],[31,12,31,15]]}
["Landeshauptstadt Dresden - Jugendamt",{"$nulls":14},"Förderung von Trägern der freien Jugendhilfe"]
[]
["Nachantrag für den Bewilligungszeitraum:"]
[]
["Der Nachantrag kann sich nur auf unvorhergesehene, unabweisbare Mehrausgaben beziehen, die nicht Bestandteil des Fördermittelantrages waren bzw. über die bisher noch keine Entscheidung (Förderbeschluss/Zuwendungsbescheid) getroffen wurde. Grundsätzlich kommt eine Nachbewilligung nur in Frage, wenn der Zuwendungsempfänger nicht in der Lage ist, Mehrausgaben durch Einsparungen bzw. geringere Ausgaben in anderen Bereichen auszugleichen bzw. ihm keine weiteren Finanzierungsquellen zur Deckung der Mehrausgaben zur Verfügung stehen."]
[]
["Aktenzeichen:"]
[]
["Zuwendungsempfänger/\nAngebotsbezeichnung"]
[]
["Ausgaben- und Finanzierungsplan Projektförderung"]
["Der Ausgaben- und Finanzierungsplan bezieht sich immer auf das gesamte Angebot, auch dann, wenn sich der Nachantrag nur auf die Personalausgaben oder nur eine Personalstelle oder nur die Sachausgaben bezieht."]
[]
["Ausgaben",{"$nulls":3},"Sachausgaben",{"$nulls":3},"Personalausgaben",{"$nulls":3},"Gesamtausgaben"]
[{"$nulls":4},"in Euro",{"$nulls":3},"in Euro",{"$nulls":3},"in Euro"]
[{"$nulls":12},{"$f":"SUM(E16:L16)","v":0}]
[]
["Finanzierung",{"$nulls":3},"Sachausgaben",{"$nulls":3},"Personalausgaben",{"$nulls":3},"Finanzierung gesamt"]
[{"$nulls":4},"in Euro",{"$nulls":3},"in Euro",{"$nulls":3},"in Euro"]
["Zuwendung Jugendamt (Bewilligung)",{"$nulls":11},{"$f":"I20+E20","v":0}]
["Nachantrag",{"$nulls":11},{"$f":"I21+E21","v":0}]
[]
["Zuwendung Jugendamt gesamt",{"$nulls":11},{"$f":"M20+M21","v":0}]
["weitere öffentliche Mittel",{"$nulls":11},{"$f":"SUM(E24:L24)","v":0}]
["sonstige Finanzierungsquellen",{"$nulls":11},{"$f":"SUM(E25:L25)","v":0}]
["Eigenmittel",{"$nulls":11},{"$f":"SUM(E26:L26)","v":0}]
["gesamt",{"$nulls":3},{"$f":"SUM(E23:H26)","v":0},{"$nulls":3},{"$f":"SUM(I23:L26)","v":0},{"$nulls":3},{"$f":"SUM(M23:P26)","v":0}]
[{"$nulls":10},{"$f":"IF(M16<>M27, \"Fehler: Ausgaben ungleich Finanzierung\",\"\")","v":""}]
["Notwendige Anlagen (siehe Folgeblätter):"]
["Bei Nachantrag Sachausgaben: vollständig ausgefülltes Sachausgabenblatt\nBei Nachantrag Personalausgaben: vollständig auszufülltes Personalausgabenblatt sowie das Blatt \"Angaben zur Fachkraft\", sofern die Angaben noch nicht im Jugendamt vorliegen bzw. sich Angaben geändert haben"]
["Der Zuwendungsempfänger bestätigt, dass die Angaben im Antrag vollständig und richtig sind und die Grundsätze einer sparsamen und wirtschaftlichen Haushaltsplanung eingehalten wurden. U1-/U2-Erstattungen wurden bei der Bedarfsermittlung berücksichtigt und (werden) bei der Bewilligungsbehörde angezeigt. Änderungen, die Auswirkungen auf den Antrag haben, werden unverzüglich und unaufgefordert angezeigt."]
[]
["Ort, Datum",{"$nulls":5},"rechtsverbindliche Unterschrift(en) ",{"$nulls":5},"in Block-/PC-Schrift:"]

{"sheet":"Sachausgaben","index":1,"n_rows":54,"n_cols":16,"rows_kept":54,"merged":[[0,14,0,15],[2,0,2,15],[3,12,3,14],[4,8,4,10],[6,1,6,15],[7,1,7,15],[8,1,8,15],[10,13,10,15],[11,12,11,14],[12,8,12,10],[14,1,14,15],[15,1,15,15],[16,1,16,15],[18,12,18,14],[19,8,19,10],[21,1,21,15],[22,1,22,15],[23,1,23,15],[25,12,25,14],[26,8,26,10],[28,1,28,15],[29,1,29,15],[30,1,30,15],[32,12,32,14],[33,8,33,10],[35,1,35,15],[36,1,36,15],[37,1,37,15],[39,12,39,14],[41,8,41,10],[43,12,43,14],[47,1,47,15],[48,1,48,15],[49,1,49,15],[51,12,51,14],[53,0,53,15]]}
["Nachantrag - Seite 2",{"$nulls":12},"Az:",{"$f":"AFP!E7","v":0}]
[]
["Sachausgaben (detaillierte Sachausgabendarstellung nur bei Nachantrag Sachausgaben; werden nur Personalausgaben nachbeantragt, ist das Eintragen der Gesamtsumme Sachausgaben ausreichend)"]
["1. Gebäude- / Bewirtschaftungsausgaben gesamt",{"$nulls":14},"EUR"]
[null,"davon Mehrausgaben*",{"$nulls":9},"EUR"]
[null,"genaue Bezeichnung der Mehrausgaben, Gründe:"]
[]
[]
[]
[]
[{"$nulls":12},"Gebäude- und Bewirtschaftungsausgaben gesamt:",{"$f":"SUM(N4:P7)","v":0}]
["2. Ausgaben im Rahmen der sozialpädagogischen Arbeit",{"$nulls":14},"EUR"]
[null,"davon Mehrausgaben*",{"$nulls":9},"EUR"]
[null,"genaue Bezeichnung der Mehrausgaben, Gründe:"]
[]
[]
[]
[]
["3. Weitere Sachausgaben",{"$nulls":14},"EUR"]
[null,"davon Mehrausgaben*",{"$nulls":9},"EUR"]
[null,"genaue Bezeichnung der Mehrausgaben, Gründe:"]
[]
[]
[]
[]
["4. Verwaltungsausgaben",{"$nulls":14},"EUR"]
[null,"davon Mehrausgaben*",{"$nulls":9},"EUR"]
[null,"genaue Bezeichnung der Mehrausgaben, Gründe:"]
[]
[]
[]
[]
["5. Zeitlich begrenzte Maßnahmen (Bildungs-/erlebnispäd. Maßnahmen)",{"$nulls":14},"EUR"]
[null,"davon Mehrausgaben*",{"$nulls":9},"EUR"]
[null,"genaue Bezeichnung der Mehrausgaben, Gründe:"]
[]
[]
[]
[]
[{"$nulls":11},"Sachausgaben gesamt:",{"$f":"M4+M12+M19+M26+M33","v":0},null,null,"EUR"]
[]
[{"$nulls":7},"davon Mehrausgaben:",{"$f":"I5+I13+I20+I27+I34","v":0},null,null,"EUR"]
[]
[{"$nulls":11},"Personalausgaben gesamt:",{"$f":"Personalausgaben!G19","v":0},null,null,"EUR"]
[]
["Werden Fördermittel für Personal nachbeantragt, dann ist das Folgeblatt \"Personalausgaben\" auszufüllen."]
[null,"genaue Bezeichnung der Mehrausgaben, Gründe:"]
[]
[]
[]
[]
[{"$nulls":11},"Sach- und Personalausgaben gesamt:",{"$f":"M40+M44","v":0},null,null,"EUR"]
[]
["* unvorhergesehene/unabweisbare Mehrausgaben, die kein Bestandteil des Fördermittelantrages bzw. des auf die Bewilligung angepassten Ausgaben- und Finanzierungsplanes waren"]

{"sheet":"Personalausgaben","index":2,"n_rows":21,"n_cols":9,"rows_kept":21,"merged":[[3,0,4,0],[3,1,4,1],[3,2,4,3],[3,4,3,5],[3,6,4,6],[3,7,4,7],[5,2,5,3],[6,2,6,3],[7,2,7,3],[8,2,8,3],[9,2,9,3],[10,2,10,3],[11,2,11,3],[12,2,12,3],[13,2,13,3],[14,2,14,3],[15,2,15,3],[16,2,16,3],[17,0,17,5],[18,6,19,6],[18,7,19,7],[19,1,19,3],[20,0,20,7]]}
["Landeshauptstadt Dresden - Jugendamt",{"$nulls":5},"Aktenzeichen:",{"$f":"AFP!E7","v":0}]
[]
["Angaben zum Personal (geförderte Fachkräfte)"]
["Name, Vorname*","Stellenbezeichnung","beschäftigt von/bis \n(im Bewilligungszeitraum)        ",null,"wöchentl. Arbeits-\nzeit in Stunden",null,"Ausgaben \nin Euro","Fördermittel-\neinsatz\nin Euro"]
[{"$nulls":4},"pro Woche","Jahres-      durch-        schnitt"]
{"$rows_empty":12}
["Berufsgenossenschaft"]
[{"$nulls":4},"h/W","VzÄ",{"$f":"SUM(G6:G18)","v":0},{"$f":"SUM(H6:H18)","v":0}]
[null,"gesamt (Jahresdurchschnitt)",null,null,{"$f":"SUM(F6:F17)","v":0},{"$f":"ROUND(E20/'Angaben zur Fachkraft'!L44,2)","v":{"$error":"#DIV/0!"}},null,null,"Erst Blatt Angaben zur Fachkraft ausfüllen ->"]
["*Entsprechen die aufgeführten Beschäftigten nicht den Personen im Antrag bzw. ergeben sich Änderungen z. B. bzgl. der Stundenaufteilung, sind das Formblatt „Angaben zur geförderten Fachkraft“, Qualifikationsnachweise sowie eine Beschreibung der bisherigen beruflichen Tätigkeiten mit Zeitangaben mit einzureichen."]

{"sheet":"Angaben zur Fachkraft","index":3,"n_rows":59,"n_cols":26,"rows_kept":59,"merged":[[2,9,2,14],[4,1,4,6],[4,9,4,14],[7,0,7,4],[7,5,7,7],[7,8,7,14],[9,2,9,3],[9,4,9,6],[9,7,9,9],[12,0,13,8],[15,0,16,8],[18,0,19,8],[22,9,22,13],[23,0,23,1],[23,2,23,3],[23,5,23,7],[23,9,23,14],[26,8,27,13],[27,4,28,5],[29,1,29,14],[30,0,30,10],[30,13,32,14],[34,0,34,2],[34,3,34,4],[34,5,34,6],[34,7,34,8],[34,9,34,10],[34,11,34,12],[34,13,34,14],[36,9,36,14],[37,0,37,2],[37,3,37,5],[37,6,37,8],[37,9,38,14],[38,0,38,2],[38,3,38,5],[38,6,38,8],[41,0,41,14],[47,0,47,2],[47,3,47,4],[47,5,47,6],[47,8,47,10],[47,11,47,12],[47,13,47,14],[48,0,48,2],[48,3,48,4],[48,5,48,6],[48,8,48,10],[48,11,48,12],[48,13,48,14],[49,0,49,2],[49,3,49,4],[49,5,49,6],[49,8,49,10],[49,11,49,12],[49,13,49,14],[53,0,53,3],[53,4,53,5],[53,6,53,8],[53,9,54,10],[53,11,53,12],[53,13,54,14],[54,4,55,5],[55,9,55,10],[55,13,55,14],[56,0,56,3],[56,4,56,8],[56,9,58,11],[56,12,59,14],[57,0,57,3],[57,4,57,8],[58,4,58,8]]}
["Landeshauptstadt Dresden - Jugendamt",{"$nulls":13},"Förderung von Trägern der freien Jugendhilfe"]
[]
["Angaben zur Fachkraft",{"$nulls":7},"Zeitraum:",{"$nulls":6},"Max. für 1 Jahr!"]
[]
["Träger:",{"$nulls":7},"Angebot:"]
["Zutreffendes ist anzukreuzen."]
["Name, Vorname",{"$nulls":4},"Geburtsdatum",null,null,"Stellen-/Tätigkeitsbezeichnung"]
[]
["Stellenbeschreibung"]
["ist beigefügt",null,"oder",null,"Stellenbeschreibung liegt\ndem Amt vor mit Datum: ",{"$nulls":6},"Sie behält ihre Gültigkeit:"]
["Ausbildung"]
["Berufsabschluss:"]
[{"$nulls":9},"Kopie* des Abschlusses:"]
[{"$nulls":9},"ist beigefügt:",null,null,"liegt dem Amt vor:"]
["berufsbegleitende Ausbildung:"]
[{"$nulls":9},"Immatrikulationsbescheinigung:"]
[{"$nulls":9},"ist beigefügt:",null,null,"liegt dem Amt vor:"]
["Zusatzqualifikationen:"]
[{"$nulls":9},"Kopie*:"]
[{"$nulls":9},"ist beigefügt:",null,null,"liegt dem Amt vor:"]
["*Die kopierten Qualifikationsnachweise müssen mit dem Vermerk des Trägers \"Das Original hat am ... (Datum) vorgelegen\" versehen sein."]
["Vergütung"]
["in Anlehnung an den Tarif öffentlicher Dienst (TVöD bzw. TVÜ-VKA)",{"$nulls":8},"anderer Tarifvertrag (Bezeichnung)"]
["Entgeltgruppe/\nStufe:",{"$nulls":4},"übergeleitete(r)  Beschäftigte(r)"]
[]
["Sozialdaten (nur für \"übergeleitete Beschäftigte\")"]
["Familienstand:",null,"ledig",null,"verheiratet",null,"verwitwet",null,"Ehepartner im öffentlichen Dienst  bzw. nach dem Überleitungstarifvertrag des TVöD vergütet:"]
["Stichtag 30.09.2005",{"$nulls":3},"geschieden"]
[]
["Kinder: ","(Angaben sind für alle übergeleitete Beschäftigte zu leisten; es sind nur die Kinder zu berücksichtigen, die bis zum 31.12.2005 geboren wurden)"]
["1. Anzahl der Kinder, für welche der/die Beschäftigte im Antragszeitraum Kindergeld erhält:"]
["                       ",{"$nulls":24},","]
[]
[]
["Geb.daten der zu berücksichtigenden Kinder:"]
[{"$nulls":3},"1. Kind",null,"2. Kind",null,"3. Kind",null,"4. Kind",null,"5. Kind",null,"6. Kind"]
["Beschäftigungszeiten",{"$nulls":8},"Unterbrechungszeiten mit Auswirkungen auf die Stufenlaufzeit gemäß § 16 TVöD (z.B. Elternzeit)",{"$nulls":5}," ->"]
["in der o. g. Tätigkeit beschäftigt seit: ",null,null,"beim Träger beschäftigt seit/\nausgeschieden am:",null,null,"Aufnahme der Tätigkeit im Angebot am:"]
[]
["Weitere Unterbrechungszeiten ohne Lohnfortzahlung durch den Zuwendungsempfänger",{"$nulls":13},"ggf. Blatt anfügen"]
["(z.B. Beschäftigungsverbot, Schutzfristen nach Mutterschutzgesetz, Langzeiterkrankung)"]
[]
[]
["Arbeitsumfang ",{"$nulls":4},"Jahresdurchschnitt:",null,null,"Vollzeit nach TVöD",{"$nulls":3},"h/W"]
["Regelmäßige wöchentliche Arbeitszeit:",{"$nulls":4},{"$f":"ROUND((F48/12*D48)+(N48/12*L48)+(F49/12*D49)+(N49/12*L49)+(F50/12*D50)+(N50/12*L50),2)","v":{"v":39,"d":"39.00"}},"h/Woche",null,{"$f":"ROUND(F45/L44,2)","v":{"$error":"#DIV/0!"}},"in VzÄ"]
[]
["Datum (von - bis)",null,null," in Monaten",null,"Std./Woche",null,null,"Datum (von - bis)",null,null," in Monaten",null,"Std./Woche"]
[{"$nulls":3},{"v":12,"d":"12.00"},null,{"v":39,"d":"39.00"}]
[]
[{"$nulls":16},{"$f":"IF((D46+L46+D48+L48+D50+L50)>12,\"Zu viele Monate!\",\"\")","v":""}]
[]
["Lohnnebenkosten etc.",{"$nulls":3},"geringfügig beschäftigt (Minijob)"]
[]
["AG-Anteile SV in %",{"$nulls":3},"Welche Krankenkasse?",null,"Umlage-Verfahren der Krankenkassen in %",null,null,"AG-Anteile ges.               in EUR",null,"VWL in EUR",null,"bAV/Jahr                 in EUR"]
["PV","RV","AV","KV",null,null,"U1","U2","IU",null,null,"im Monat","im Jahr"]
[]
["PV: Pflegeversicherung                                RV: Rentenversicherung",{"$nulls":3},"U1: Lohnfortzahl.verfahren der Krankenkassen im Krankheitsfall",{"$nulls":4},"VWL: Vermögenswirksame Leistungen für 1,0 VzÄ max. 6,65 € pro Monat",null,null,"bAV: die Arbeitgeberaufwendungen für eine betriebl. Altersvorsorge sind max. in Höhe der städtischen Altersvorsorge (ZVK) zuwendungsfähig. "]
["AV: Arbeitslosenversicherung                         KV: Krankenversicherung",{"$nulls":3},"U2: Lohnfortzahlungsverfahren der Krankenkassen bei Mutterschaft"]
[{"$nulls":4},"IU: Insolvenzgeldumlage an die KK (ausgenommen Körperschaften des öff. Rechts)"]